fUST/lending_fUST_20250109
["ID","MTS","AMOUNT","RATE_DAILY","PERIOD"]
[348174142,1736365757373,-578.08,0.00019726,3]
[348174143,1736365757397,-500.0,0.00019999,3]
[348174144,1736365757418,-500.0,0.00019999,3]
[348174145,1736365757440,-2071.22,0.00019999,3]
[348174146,1736365757463,-308.65,0.00019999,3]
[348174147,1736365757486,-152.26,0.00019999,3]
[348174148,1736365757508,-500.0,0.00019999,3]
[348174149,1736365757530,-500.0,0.00019999,3]
[348174150,1736365757553,-1111.62,0.0002,3]
[348174151,1736365757578,-500.0,0.0002,3]
[348174152,1736365757602,-578.08,0.0002,3]
[348174190,1736365832887,-763.01926224,0.00019451,3]
[348174192,1736365832899,-711.98073776,0.00019451,3]
[348174194,1736365832908,-300.0,0.00020272,2]
[348174196,1736365832918,-383.93926224,0.00020272,3]
[348174199,1736365832929,-291.69734597,0.00020272,3]
[348174201,1736365832940,-626.838,0.00020272,3]
[348174203,1736365832953,-172.52539179,0.00020272,3]
[348174205,1736365832962,-661.93214202,0.00020273,3]
[348174214,1736365833036,-449.68785798,0.00020273,3]
[348174216,1736365833046,-500.0,0.00020273,3]
[348174218,1736365833055,-1.15458003,0.00020273,3]
[348174352,1736365838691,-498.84541997,0.00020273,3]
[348174354,1736365838703,-150.38963503,0.00020273,3]
[348174357,1736365838715,-427.69036497,0.00020273,3]
[348174359,1736365838725,-2071.22,0.00020273,3]
[348174361,1736365838734,-455.18759612,0.00020273,3]
[348174363,1736365838745,-44.81240388,0.00020273,3]
[348174365,1736365838755,-500.0,0.00020273,3]
[348174367,1736365838764,-500.0,0.00020546,3]
[348174369,1736365838773,-1111.62,0.00020547,3]
[348174371,1736365838782,-500.0,0.00020547,3]
[348174372,1736365838791,-500.0,0.00020547,3]
[348174373,1736365838800,-578.08,0.00020547,3]
[348174374,1736365838810,-2071.22,0.00020547,3]
[348174375,1736365838819,-473.64311769,0.00020547,3]
[348174376,1736365838828,-1111.62,0.00020821,3]
[348174377,1736365838837,-221.53841665,0.00020821,3]
[348174378,1736365838847,-84.79589178,0.00020821,3]
[348174379,1736365838862,-404.75567804,0.00020821,3]
[348174399,1736365840661,-10.44843018,0.00020821,3]
[348174401,1736365840671,-578.08,0.00020821,3]
[348174402,1736365840681,-2071.22,0.00020821,3]
[348174403,1736365840690,-1779.20944662,0.00021,2]
[348174404,1736365840699,-500.0,0.00021094,3]
[348174405,1736365840709,-1111.62,0.00021095,3]
[348174406,1736365840719,-491.4676241,0.00021095,3]
[348174408,1736365840728,-578.08,0.00021095,3]
[348174410,1736365840737,-2071.22,0.00021095,3]
[348174412,1736365840746,-1475.0,0.00021097,3]
[348174414,1736365840755,-457.84108849,0.00021369,3]
[348174418,1736365840830,-653.77891151,0.00021369,3]
[348174419,1736365840839,-578.08,0.00021369,3]
[348174420,1736365840849,-245.77127179,0.00021369,3]
[348174421,1736365840861,-609.81780561,0.00021369,3]
[348174422,1736365840872,-819.32607797,0.00021369,3]
[348174423,1736365840884,-396.30484463,0.00021369,3]
[348174424,1736365840893,-154.88735607,0.00021543,2]
[348174425,1736365840903,-500.0,0.00021642,3]
[348174426,1736365840912,-1111.62,0.00021643,3]
[348174427,1736365840921,-403.99332489,0.00021643,3]
[348174470,1736365844408,-636.9118,0.00021274,2]
[348174472,1736365844418,-174.08667511,0.00021643,3]
[348174474,1736365844427,-2027.06399734,0.00021643,3]
[348174476,1736365844439,-44.15600266,0.00021643,3]
[348174478,1736365844448,-1111.62,0.00021917,3]
[348174480,1736365844459,-578.08,0.00021917,3]
[348174482,1736365844468,-2071.22,0.00021917,3]
[348174484,1736365844477,-556.216,0.0002204,2]
[348174486,1736365844487,-420.0,0.00022068,2]
[348174488,1736365844497,-716.63,0.000221,2]
[348174490,1736365844507,-500.0,0.0002219,3]
[348174492,1736365844516,-154.20900687,0.0002219,3]
[348174495,1736365844527,-1026.5422485,0.0002219,3]
[348174500,1736365844569,-294.24874463,0.0002219,3]
[348174502,1736365844579,-1111.62,0.00022191,3]
[348174504,1736365844589,-578.08,0.00022191,3]
[348174506,1736365844598,-2071.22,0.00022191,3]
[348174509,1736365844607,-150.0,0.00022381,2]
[348174512,1736365844617,-535.0,0.00022381,2]
[348174515,1736365844627,-2079.0,0.00022381,2]
[348174518,1736365844636,-2318.0,0.00022381,2]
[348174521,1736365844645,-394.0,0.00022381,2]
[348174524,1736365844655,-150.0,0.00022381,2]
[348174527,1736365844665,-408.59579949,0.00022465,3]
[348174530,1736365844678,-703.02420051,0.00022465,3]
[348174532,1736365844688,-578.08,0.00022465,3]
[348174534,1736365844698,-2071.22,0.00022465,3]
[348174535,1736365844710,-362.07992589,0.00022523,2]
[348174732,1736365846800,-105.38112574,0.00022523,2]
[348174734,1736365846810,-153.6911881,0.00022658,2]
[348174737,1736365846820,-1111.62,0.00022739,3]
[348174739,1736365846829,-578.08,0.00022739,3]
[348174741,1736365846838,-2071.22,0.00022739,3]
[348174743,1736365846850,-500.0,0.00022775,3]
[348174745,1736365846859,-1475.0,0.00022784,3]
[348174746,1736365846869,-1200.0,0.00022784,2]
[348174749,1736365846878,-1987.0,0.00022896,2]
[348174750,1736365846888,-1111.62,0.00023013,3]
[348174752,1736365846897,-578.08,0.00023013,3]
[348174754,1736365846907,-2071.22,0.00023013,3]
[348174756,1736365846916,-2102.98320434,0.0002309,2]
[348174759,1736365846925,-500.0,0.00023097,3]
[348174760,1736365846935,-500.0,0.00023097,3]
[348174763,1736365846945,-1475.0,0.00023097,3]
[348174765,1736365846954,-1475.0,0.00023097,3]
[348174767,1736365846965,-32664.02598592,0.00023098,3]
[348174768,1736365846975,-17039.39,0.0002317,5]
[348174771,1736365846989,-187.92465718,0.00023189,2]
[348174772,1736365847000,-151.0,0.0002319,7]
[348174774,1736365847018,-231.30854,0.0002319,7]
[348174776,1736365847028,-17157.69840557,0.0002319,5]
[348174779,1736365847037,-1156.78387799,0.0002319,5]
[348174781,1736365847047,-104061.08434027,0.0002319,10]
[348175276,1736365900129,160.566747,0.00013973,2]
[348175281,1736366732154,-1137.126258,0.00018312,2]
[348175282,1736366736090,-326.74330607,0.00018312,2]
[348175283,1736366758188,160.566747,0.00013973,2]
[348175284,1736366843119,-300.0,0.0001831,2]
[348175285,1736366843141,-6478.0,0.0001831,2]
[348175286,1736366843164,-12600.78234411,0.00018312,2]
[348175287,1736366849270,-3700.0,0.00018312,2]
[348175288,1736366952147,-7135.34809182,0.00018312,2]
[348175289,1736366952167,-647.0444198,0.00018516,2]
[348175290,1736366952187,-193.8691302,0.00018516,2]
[348175291,1736366952208,-300.0,0.00018733,2]
[348175292,1736366952228,-1226.6988364,0.00018734,2]
[348175293,1736366952248,-224.06297869,0.000189,2]
[348175329,1736367032774,-238.97712286,0.000189,2]
[348175331,1736367032784,-300.0,0.00019177,2]
[348175333,1736367032794,-500.0,0.00019178,2]
[348175335,1736367032803,-906.46,0.00019178,2]
[348175337,1736367032812,-500.0,0.00019178,2]
[348175339,1736367032822,-500.0,0.00019178,2]
[348175341,1736367032831,-515.58,0.00019178,2]
[348175343,1736367032840,-329.31,0.00019178,2]
[348175345,1736367032850,-500.0,0.00019178,2]
[348175347,1736367032859,-500.0,0.00019178,2]
[348175349,1736367032868,-500.0,0.00019178,2]
[348175351,1736367032878,-165.822356,0.00019178,2]
[348175352,1736367032887,-294.5252103,0.00019264,2]
[348175354,1736367032896,-174.42819812,0.0001935,2]
[348175356,1736367032906,-500.0,0.0001945,3]
[348175357,1736367032915,-500.0,0.0001945,3]
[348175358,1736367032928,-500.0,0.0001945,3]
[348175359,1736367032937,-500.0,0.0001945,3]
[348175360,1736367032946,-500.0,0.0001945,3]
[348175361,1736367032956,-500.0,0.0001945,3]
[348175362,1736367032965,-500.0,0.0001945,3]
[348175363,1736367032975,-500.0,0.0001945,3]
[348175364,1736367032984,-500.0,0.0001945,3]
[348175365,1736367032994,-500.0,0.0001945,3]
[348175366,1736367033003,-500.0,0.0001945,3]
[348175367,1736367033013,-402.33746573,0.0001945,3]
[348175368,1736367033024,-500.0,0.0001945,3]
[348175369,1736367033036,-500.0,0.0001945,3]
[348175370,1736367033046,-500.0,0.0001945,3]
[348175371,1736367033056,-500.0,0.0001945,3]
[348175372,1736367033067,-500.0,0.0001945,3]
[348175373,1736367033077,-500.0,0.0001945,3]
[348175374,1736367033090,-500.0,0.0001945,3]
[348175375,1736367033100,-500.0,0.0001945,3]
[348175376,1736367033110,-510.10798842,0.0001945,3]
[348175377,1736367033120,-500.0,0.0001945,3]
[348175378,1736367033130,-500.0,0.0001945,3]
[348175379,1736367033140,-500.0,0.0001945,3]
[348175380,1736367033149,-22.59221082,0.0001945,3]
[348175381,1736367033162,-477.40778918,0.0001945,3]
[348175382,1736367033173,-500.0,0.0001945,3]
[348175383,1736367033183,-500.0,0.0001945,3]
[348175384,1736367033192,-500.0,0.0001945,3]
[348175385,1736367033202,-500.0,0.0001945,3]
[348175386,1736367033211,-500.0,0.0001945,3]
[348175387,1736367033220,-500.0,0.0001945,3]
[348175388,1736367033230,-500.0,0.0001945,3]
[348175389,1736367033239,-500.0,0.0001945,3]
[348175390,1736367033249,-500.0,0.0001945,3]
[348175391,1736367033258,-500.0,0.0001945,3]
[348175392,1736367033269,-500.0,0.0001945,3]
[348175393,1736367033279,-500.0,0.0001945,3]
[348175394,1736367033288,-500.0,0.0001945,3]
[348175395,1736367033298,-500.0,0.0001945,3]
[348175396,1736367033308,-500.0,0.0001945,3]
[348175397,1736367033318,-399.56436692,0.0001945,3]
[348175398,1736367033328,-500.0,0.0001945,3]
[348175399,1736367033337,-500.0,0.0001945,3]
[348175400,1736367033347,-500.0,0.0001945,3]
[348175401,1736367033357,-500.0,0.0001945,3]
[348175402,1736367033367,-500.0,0.0001945,3]
[348175403,1736367033377,-500.0,0.0001945,3]
[348175404,1736367033386,-500.0,0.0001945,3]
[348175405,1736367033396,-500.0,0.0001945,3]
[348175406,1736367033406,-500.0,0.0001945,3]
[348175407,1736367033416,-500.0,0.0001945,3]
[348175408,1736367033428,-500.0,0.0001945,3]
[348175409,1736367033438,-500.0,0.0001945,3]
[348175410,1736367033447,-500.0,0.0001945,3]
[348175411,1736367033457,-500.0,0.0001945,3]
[348175412,1736367033470,-500.0,0.0001945,3]
[348175413,1736367033480,-500.0,0.0001945,3]
[348175414,1736367033490,-500.0,0.0001945,3]
[348175415,1736367033500,-500.0,0.0001945,3]
[348175416,1736367033511,-180.70649437,0.0001945,3]
[348175417,1736367033521,-500.0,0.0001945,3]
[348175418,1736367033531,-500.0,0.0001945,3]
[348175419,1736367033541,-500.0,0.0001945,3]
[348175420,1736367033551,-500.0,0.0001945,3]
[348175421,1736367033561,-500.0,0.0001945,3]
[348175422,1736367033571,-500.0,0.0001945,3]
[348175423,1736367033581,-500.0,0.0001945,3]
[348175424,1736367033590,-646.2030332,0.0001945,3]
[348175425,1736367033600,-1543.05,0.0001945,3]
[348175426,1736367033610,-500.0,0.0001945,3]
[348175427,1736367033619,-500.0,0.0001945,3]
[348175428,1736367033628,-500.0,0.0001945,3]
[348175429,1736367033638,-500.0,0.0001945,3]
[348175430,1736367033647,-500.0,0.0001945,3]
[348175431,1736367033657,-500.0,0.0001945,3]
[348175432,1736367033666,-500.0,0.0001945,3]
[348175433,1736367033677,-500.0,0.0001945,3]
[348175434,1736367033687,-500.0,0.0001945,3]
[348175435,1736367033696,-500.0,0.0001945,3]
[348175436,1736367033706,-500.0,0.0001945,3]
[348175437,1736367033715,-500.0,0.0001945,3]
[348175438,1736367033725,-500.0,0.0001945,3]
[348175439,1736367033735,-500.0,0.0001945,3]
[348175440,1736367033744,-500.0,0.0001945,3]
[348175441,1736367033754,-500.0,0.0001945,3]
[348175442,1736367033763,-500.0,0.0001945,3]
[348175443,1736367033773,-500.0,0.0001945,3]
[348175444,1736367033783,-500.0,0.0001945,3]
[348175445,1736367033793,-500.0,0.0001945,3]
[348175446,1736367033803,-311.13202526,0.0001945,3]
[348175447,1736367033812,-500.0,0.0001945,3]
[348175448,1736367033821,-500.0,0.0001945,5]
[348175449,1736367033830,-500.0,0.0001945,3]
[348175450,1736367033839,-500.0,0.0001945,3]
[348175451,1736367033849,-500.0,0.0001945,3]
[348175452,1736367033859,-500.0,0.0001945,3]
[348175453,1736367033868,-500.0,0.0001945,3]
[348175454,1736367033878,-500.0,0.0001945,3]
[348175455,1736367033887,-500.0,0.0001945,3]
[348175456,1736367033897,-500.0,0.0001945,3]
[348175457,1736367033906,-500.0,0.0001945,3]
[348175458,1736367033915,-500.0,0.0001945,3]
[348175459,1736367033925,-500.0,0.0001945,3]
[348175460,1736367033935,-500.0,0.0001945,3]
[348175461,1736367033944,-500.0,0.0001945,3]
[348175462,1736367033953,-500.0,0.0001945,3]
[348175463,1736367033963,-500.0,0.0001945,3]
[348175464,1736367033972,-500.0,0.0001945,3]
[348175465,1736367033982,-500.0,0.0001945,3]
[348175466,1736367033991,-229.4,0.0001945,3]
[348175467,1736367034001,-500.0,0.00019451,3]
[348175468,1736367034011,-530.84098791,0.00019451,3]
[348175469,1736367034020,-500.0,0.00019451,3]
[348175470,1736367034030,-500.0,0.00019451,3]
[348175471,1736367034041,-500.0,0.00019451,3]
[348175472,1736367034050,-500.0,0.00019451,3]
[348175473,1736367034060,-500.0,0.00019451,3]
[348175474,1736367034070,-500.0,0.00019451,3]
[348175475,1736367034080,-500.0,0.00019451,3]
[348175476,1736367034090,-500.0,0.00019451,3]
[348175477,1736367034101,-500.0,0.00019451,3]
[348175478,1736367034111,-500.0,0.00019451,3]
[348175479,1736367034121,-500.0,0.00019451,3]
[348175480,1736367034130,-500.0,0.00019451,3]
[348175481,1736367034140,-500.0,0.00019451,3]
[348175482,1736367034150,-500.0,0.00019451,3]
[348175483,1736367034160,-500.0,0.00019451,3]
[348175484,1736367034170,-500.0,0.00019451,3]
[348175485,1736367034181,-500.0,0.00019451,3]
[348175486,1736367034191,-906.46,0.00019452,3]
[348175487,1736367034201,-158.21,0.00019452,3]
[348175488,1736367034211,-500.0,0.00019452,3]
[348175489,1736367034221,-515.58,0.00019452,3]
[348175490,1736367034231,-500.0,0.00019452,3]
[348175491,1736367034241,-385.33,0.00019452,3]
[348175492,1736367034250,-500.0,0.00019721,2]
[348175493,1736367034260,-500.0,0.00019721,2]
[348175494,1736367034270,-500.0,0.00019721,2]
[348175495,1736367034280,-480.23367454,0.00019721,2]
[348175496,1736367034290,-189.13752448,0.00019721,2]
[348175497,1736367034301,-500.0,0.00019721,2]
[348175498,1736367034311,-500.0,0.00019721,2]
[348175499,1736367034321,-500.0,0.00019721,2]
[348175500,1736367034330,-500.0,0.00019721,2]
[348175501,1736367034341,-500.0,0.00019721,2]
[348175502,1736367034351,-500.0,0.00019721,2]
[348175503,1736367034361,-500.0,0.00019721,2]
[348175504,1736367034371,-500.0,0.00019721,2]
[348175505,1736367034381,-500.0,0.00019721,2]
[348175506,1736367034391,-500.0,0.00019721,2]
[348175507,1736367034400,-500.0,0.00019721,2]
[348175508,1736367034410,-500.0,0.00019721,2]
[348175509,1736367034420,-500.0,0.00019721,2]
[348175510,1736367034441,-500.0,0.00019721,2]
[348175511,1736367034453,-500.0,0.00019721,2]
[348175512,1736367034463,-370.08217009,0.00019721,2]
[348175513,1736367034476,-500.0,0.00019721,2]
[348175514,1736367034486,-277.42058891,0.00019721,2]
[348175515,1736367034497,-458.19509441,0.00019721,2]
[348175516,1736367034507,-500.0,0.00019721,2]
[348175517,1736367034517,-500.0,0.00019721,2]
[348175518,1736367034527,-500.0,0.00019721,2]
[348175519,1736367034537,-500.0,0.00019721,2]
[348175520,1736367034548,-500.0,0.00019721,2]
[348175521,1736367034558,-500.0,0.00019721,2]
[348175522,1736367034567,-500.0,0.00019721,2]
[348175523,1736367034578,-500.0,0.00019721,2]
[348175524,1736367034587,-500.0,0.00019721,2]
[348175525,1736367034597,-500.0,0.00019721,2]
[348175526,1736367034607,-324.80363112,0.00019721,2]
[348175527,1736367034617,-500.0,0.00019721,2]
[348175528,1736367034627,-500.0,0.00019721,2]
[348175529,1736367034637,-500.0,0.00019721,2]
[348175530,1736367034647,-500.0,0.00019721,2]
[348175531,1736367034657,-157.578,0.00019724,2]
[348175532,1736367034666,-500.0,0.00019724,3]
[348175533,1736367034677,-500.0,0.00019724,3]
[348175534,1736367034687,-500.0,0.00019724,3]
[348175535,1736367034696,-500.0,0.00019724,3]
[348175536,1736367034844,-500.0,0.00019724,3]
[348175537,1736367034854,-500.0,0.00019724,3]
[348175538,1736367034863,-500.0,0.00019724,3]
[348175539,1736367034873,-500.0,0.00019724,3]
[348175540,1736367034883,-500.0,0.00019724,3]
[348175541,1736367034893,-500.0,0.00019724,3]
[348175542,1736367034903,-597.93,0.00019724,3]
[348175543,1736367034914,-500.0,0.00019724,3]
[348175544,1736367034923,-500.0,0.00019724,3]
[348175545,1736367034936,-500.0,0.00019724,3]
[348175546,1736367034944,-500.0,0.00019724,3]
[348175547,1736367034954,-534.44,0.00019724,3]
[348175548,1736367034963,-570.69,0.00019724,3]
[348175549,1736367034972,-502.01,0.00019724,3]
[348175550,1736367034982,-500.0,0.00019724,3]
[348175551,1736367034991,-500.0,0.00019724,3]
[348175552,1736367035001,-500.0,0.00019724,3]
[348175553,1736367035011,-500.0,0.00019724,3]
[348175554,1736367035020,-507.98881454,0.00019724,3]
[348175555,1736367035030,-1543.05,0.00019724,3]
[348175556,1736367035040,-500.0,0.00019724,3]
[348175557,1736367035050,-500.0,0.00019724,3]
[348175558,1736367035060,-325.32,0.00019724,3]
[348175559,1736367035070,-500.0,0.00019724,3]
[348175560,1736367035079,-500.0,0.00019724,3]
[348175561,1736367035089,-500.0,0.00019724,3]
[348175562,1736367035099,-500.0,0.00019724,3]
[348175563,1736367035108,-500.0,0.00019724,3]
[348175564,1736367035118,-500.0,0.00019724,3]
[348175565,1736367035128,-500.0,0.00019724,3]
[348175566,1736367035138,-500.0,0.00019724,3]
[348175567,1736367035148,-500.0,0.00019724,3]
[348175568,1736367035158,-500.0,0.00019724,3]
[348175569,1736367035168,-500.0,0.00019725,3]
[348175570,1736367035181,-500.0,0.00019725,3]
[348175571,1736367035190,-500.0,0.00019725,3]
[348175572,1736367035199,-178.66,0.00019725,3]
[348175573,1736367035208,-500.0,0.00019725,3]
[348175574,1736367035218,-1190.62,0.00019725,3]
[348175575,1736367035228,-500.0,0.00019725,3]
[348175576,1736367035237,-500.0,0.00019725,3]
[348175577,1736367035247,-500.0,0.00019725,3]
[348175578,1736367035257,-500.0,0.00019725,3]
[348175579,1736367035267,-500.0,0.00019725,3]
[348175580,1736367035277,-500.0,0.00019725,3]
[348175581,1736367035286,-906.46,0.00019726,3]
[348175582,1736367035295,-515.58,0.00019726,3]
[348175583,1736367035305,-500.0,0.00019726,3]
[348175584,1736367035315,-152.0,0.00019728,2]
[348175585,1736367035324,-280.74087118,0.00019898,2]
[348175586,1736367035333,-223.10519995,0.00019998,3]
[348175587,1736367035342,-500.0,0.00019998,3]
[348175588,1736367035352,-500.0,0.00019998,3]
[348175589,1736367035362,-500.0,0.00019998,3]
[348175590,1736367035371,-500.0,0.00019998,3]
[348175591,1736367035381,-393.44,0.00019998,3]
[348175592,1736367035390,-500.0,0.00019998,3]
[348175593,1736367035400,-500.0,0.00019998,3]
[348175594,1736367035410,-500.0,0.00019998,3]
[348175595,1736367035419,-500.0,0.00019998,3]
[348175596,1736367035430,-1543.05,0.00019998,3]
[348175597,1736367035439,-500.0,0.00019998,3]
[348175598,1736367035449,-447.15,0.00019998,3]
[348175599,1736367035458,-276.64,0.00019998,3]
[348175600,1736367035470,-500.0,0.00019998,3]
[348175601,1736367035480,-500.0,0.00019998,3]
[348175602,1736367035489,-500.0,0.00019998,3]
[348175603,1736367035499,-500.0,0.00019998,3]
[348175604,1736367035509,-500.0,0.00019998,3]
[348175605,1736367035519,-500.0,0.00019998,3]
[348175606,1736367035528,-500.0,0.00019999,3]
[348175607,1736367035538,-500.0,0.00019999,3]
[348175608,1736367035550,-500.0,0.00019999,3]
[348175609,1736367035560,-500.0,0.00019999,3]
[348175610,1736367035570,-1459.0,0.0002,2]
[348175611,1736367035579,-906.46,0.0002,3]
[348175612,1736367035589,-515.58,0.0002,3]
[348175613,1736367035599,-500.0,0.0002,3]
[348175614,1736367035609,-500.0,0.00020135,7]
[348175615,1736367035618,-193.6773841,0.00020258,2]
[348175616,1736367035627,-164.7,0.00020272,3]
[348175617,1736367035636,-500.0,0.00020272,3]
[348175618,1736367035645,-500.0,0.00020272,3]
[348175619,1736367035655,-561.09,0.00020272,3]
[348175620,1736367035664,-500.0,0.00020272,3]
[348175621,1736367035674,-1543.05,0.00020272,3]
[348175622,1736367035684,-500.0,0.00020272,3]
[348175623,1736367035693,-500.0,0.00020272,3]
[348175624,1736367035703,-500.0,0.00020272,3]
[348175625,1736367035712,-500.0,0.00020272,3]
[348175626,1736367035722,-519.18,0.00020272,3]
[348175627,1736367035731,-500.0,0.00020272,3]
[348175628,1736367035740,-363.76,0.00020272,3]
[348175629,1736367035750,-906.46,0.00020273,3]
[348175630,1736367035759,-500.0,0.00020273,3]
[348175631,1736367035768,-500.0,0.00020273,3]
[348175632,1736367035778,-515.58,0.00020273,3]
[348175633,1736367035788,-500.0,0.00020273,3]
[348175634,1736367035797,-1190.62,0.00020546,3]
[348175635,1736367035806,-500.0,0.00020546,3]
[348175636,1736367035816,-1543.05,0.00020546,3]
[348175637,1736367035825,-500.0,0.00020546,3]
[348175638,1736367035834,-500.0,0.00020546,3]
[348175639,1736367035844,-500.0,0.00020546,3]
[348175640,1736367035854,-172.39,0.00020546,3]
[348175641,1736367035863,-494.3,0.00020546,3]
[348175642,1736367035872,-906.46,0.00020547,3]
[348175643,1736367035881,-500.0,0.00020547,3]
[348175644,1736367035891,-556.55,0.00020547,3]
[348175645,1736367035900,-515.58,0.00020547,3]
[348175646,1736367035909,-500.0,0.00020547,3]
[348175647,1736367035918,-174.42819809,0.00020598,2]
[348175648,1736367035929,-500.0,0.0002082,3]
[348175649,1736367035939,-1543.05,0.0002082,3]
[348175650,1736367035948,-500.0,0.0002082,3]
[348175651,1736367035957,-500.0,0.0002082,3]
[348175652,1736367035966,-500.0,0.0002082,3]
[348175653,1736367035976,-906.46,0.00020821,3]
[348175654,1736367035985,-293.19,0.00020821,3]
[348175655,1736367035995,-515.58,0.00020821,3]
[348175656,1736367036004,-597.04,0.00020821,3]
[348175657,1736367036014,-420.0,0.00020899,2]
[348175658,1736367036023,-366.4303399,0.000209,2]
[348175659,1736367036033,-500.0,0.00020999,3]
[348175660,1736367036042,-500.0,0.00020999,3]
[348175661,1736367036052,-500.0,0.00020999,3]
[348175662,1736367036061,-500.0,0.00020999,3]
[348175663,1736367036070,-500.0,0.00020999,3]
[348175664,1736367036081,-500.0,0.00020999,3]
[348175665,1736367036090,-500.0,0.00020999,3]
[348175666,1736367036100,-500.0,0.00020999,3]
[348175667,1736367036109,-500.0,0.00020999,3]
[348175668,1736367036118,-500.0,0.00020999,3]
[348175669,1736367036127,-500.0,0.00020999,3]
[348175670,1736367036137,-366.43033973,0.00021003,2]
[348175671,1736367036146,-500.0,0.00021094,3]
[348175672,1736367036155,-1543.05,0.00021094,3]
[348175673,1736367036165,-500.0,0.00021094,3]
[348175674,1736367036176,-579.48,0.00021094,3]
[348175675,1736367036185,-500.0,0.00021094,3]
[348175676,1736367036195,-906.46,0.00021095,3]
[348175677,1736367036204,-515.58,0.00021095,3]
[348175678,1736367036213,-500.0,0.00021097,3]
[348175679,1736367036223,-366.43033973,0.00021107,2]
[348175680,1736367036232,-366.43033973,0.0002121,2]
[348175681,1736367036241,-317.16,0.00021273,3]
[348175682,1736367036251,-500.0,0.00021273,3]
[348175683,1736367036260,-500.0,0.00021273,3]
[348175684,1736367036271,-366.43033973,0.00021314,2]
[348175685,1736367036281,-500.0,0.00021368,3]
[348175686,1736367036291,-1543.05,0.00021368,3]
[348175687,1736367036300,-151.5,0.00021368,3]
[348175688,1736367036309,-500.0,0.00021368,3]
[348175689,1736367036319,-906.46,0.00021369,3]
[348175690,1736367036330,-515.58,0.00021369,3]
[348175691,1736367036340,-366.43033973,0.00021417,2]
[348175692,1736367036349,-366.43033973,0.00021521,2]
[348175693,1736367036359,-202.14,0.00021547,3]
[348175694,1736367036369,-1459.0,0.000216,4]
[348175695,1736367036379,-366.43033973,0.00021624,2]
[348175696,1736367036388,-1190.62,0.00021642,3]
[348175697,1736367036397,-500.0,0.00021642,3]
[348175698,1736367036407,-1543.05,0.00021642,3]
[348175699,1736367036416,-500.0,0.00021642,3]
[348175700,1736367036426,-906.46,0.00021643,3]
[348175701,1736367036435,-515.58,0.00021643,3]
[348175702,1736367036445,-366.43033973,0.00021728,2]
[348175703,1736367036455,-366.43033973,0.00021831,2]
[348175704,1736367036466,-174.42819809,0.00021847,2]
[348175705,1736367036477,-500.0,0.00021916,3]
[348175706,1736367036486,-1543.05,0.00021916,3]
[348175707,1736367036495,-526.74,0.00021916,3]
[348175708,1736367036504,-906.46,0.00021917,3]
[348175709,1736367036515,-515.58,0.00021917,3]
[348175710,1736367036524,-366.43033973,0.00021934,2]
[348175711,1736367036533,-366.43033973,0.00022038,2]
[348175712,1736367036543,-550.773,0.0002204,2]
[348175713,1736367036552,-699.53,0.000221,2]